[Event "*** SCC Grand Prix: Titled Tuesday Blitz"]
[Site "Chess.com"]
[Date "2020.09.29"]
[Round "2"]
[White "belisarius64"]
[Black "TheCavemanChesss"]
[Result "1-0"]
[WhiteElo "2689"]
[BlackElo "2437"]
[TimeControl "180+1"]
[EndTime "10:16:54 PDT"]
[Termination "belisarius64 won on time"]

1. e4 {[%clk 0:02:57.3]} 1... c5 {[%clk 0:02:59]} 2. Nf3 {[%clk 0:02:56.1]} 2...
d6 {[%clk 0:02:59.4]} 3. d4 {[%clk 0:02:54.8]} 3... cxd4 {[%clk 0:03:00.3]} 4.
Nxd4 {[%clk 0:02:55.4]} 4... Nf6 {[%clk 0:03:00.8]} 5. Nc3 {[%clk 0:02:55.4]}
5... a6 {[%clk 0:03:01.3]} 6. Be3 {[%clk 0:02:55.4]} 6... e5 {[%clk 0:03:01.6]}
7. Nf3 {[%clk 0:02:55.1]} 7... Be7 {[%clk 0:03:01.5]} 8. Nd2 {[%clk 0:02:55]}
8... Be6 {[%clk 0:03:00.2]} 9. Nc4 {[%clk 0:02:53.2]} 9... b5 {[%clk 0:02:35.1]}
10. Nb6 {[%clk 0:02:51.4]} 10... Ra7 {[%clk 0:02:24.7]} 11. a4 {[%clk
0:02:50.4]} 11... b4 {[%clk 0:02:24.4]} 12. Ncd5 {[%clk 0:02:49.2]} 12... O-O
{[%clk 0:02:14.4]} 13. Nc8 {[%clk 0:02:36.8]} 13... Bxd5 {[%clk 0:01:27.4]} 14.
exd5 {[%clk 0:01:31.3]} 14... Rc7 {[%clk 0:00:44.7]} 15. Nxe7+ {[%clk
0:01:28.4]} 15... Qxe7 {[%clk 0:00:31.5]} 16. a5 {[%clk 0:01:18.1]} 16... Nfd7
{[%clk 0:00:20.1]} 17. Ra4 {[%clk 0:01:11.3]} 17... Rfc8 {[%clk 0:00:18.4]} 18.
Rxb4 {[%clk 0:01:02.3]} 18... Rxc2 {[%clk 0:00:18.6]} 19. Bd3 {[%clk 0:01:02.6]}
19... R2c7 {[%clk 0:00:17.3]} 20. O-O {[%clk 0:01:02.4]} 20... Nc5 {[%clk
0:00:17]} 21. Bb1 {[%clk 0:00:59.2]} 21... g6 {[%clk 0:00:17]} 22. Rc4 {[%clk
0:00:41.1]} 22... Nbd7 {[%clk 0:00:17.2]} 23. b4 {[%clk 0:00:41.3]} 23... Nb7
{[%clk 0:00:09.1]} 24. Rxc7 {[%clk 0:00:41.9]} 24... Rxc7 {[%clk 0:00:09.7]} 25.
Bd3 {[%clk 0:00:42.7]} 25... Nd8 {[%clk 0:00:09.5]} 26. Bxa6 {[%clk 0:00:41.8]}
26... f5 {[%clk 0:00:10.4]} 27. f3 {[%clk 0:00:36.5]} 27... e4 {[%clk 0:00:10]}
28. f4 {[%clk 0:00:35.7]} 28... Rc3 {[%clk 0:00:08.1]} 29. Bd4 {[%clk
0:00:34.3]} 29... Ra3 {[%clk 0:00:08.5]} 30. Bb2 {[%clk 0:00:34]} 30... Ra2
{[%clk 0:00:08.3]} 31. Qd4 {[%clk 0:00:34.1]} 31... Rxb2 {[%clk 0:00:07]} 32.
Qxb2 {[%clk 0:00:34.1]} 32... e3 {[%clk 0:00:07.9]} 33. Re1 {[%clk 0:00:34.1]}
33... Nf6 {[%clk 0:00:07.9]} 34. Qd4 {[%clk 0:00:32.9]} 34... Ng4 {[%clk
0:00:08.5]} 35. h3 {[%clk 0:00:33]} 35... Qh4 {[%clk 0:00:09.2]} 36. Re2 {[%clk
0:00:28]} 1-0

[Event "*** SCC Grand Prix: Titled Tuesday Blitz"]
[Site "Chess.com"]
[Date "2020.09.29"]
[Round "2"]
[White "jens1102"]
[Black "AntonovaNadezhda"]
[Result "1-0"]
[WhiteElo "2380"]
[BlackElo "2065"]
[TimeControl "180+1"]
[EndTime "10:16:54 PDT"]
[Termination "jens1102 won by resignation"]

1. e4 {[%clk 0:03:00.9]} 1... c5 {[%clk 0:02:59.8]} 2. Nf3 {[%clk 0:03:00.8]}
2... d6 {[%clk 0:03:00.3]} 3. d4 {[%clk 0:03:00.4]} 3... cxd4 {[%clk 0:03:00.9]}
4. Nxd4 {[%clk 0:03:01.3]} 4... Nf6 {[%clk 0:03:00.9]} 5. Bd3 {[%clk 0:03:01.3]}
5... a6 {[%clk 0:03:01.4]} 6. O-O {[%clk 0:03:01]} 6... Nc6 {[%clk 0:02:58.8]}
7. Nxc6 {[%clk 0:03:00.9]} 7... bxc6 {[%clk 0:02:58.3]} 8. c4 {[%clk 0:03:01.8]}
8... e5 {[%clk 0:02:57.6]} 9. Nc3 {[%clk 0:03:01.2]} 9... Be7 {[%clk 0:02:57.4]}
10. Bg5 {[%clk 0:02:59.6]} 10... O-O {[%clk 0:02:57.1]} 11. Qd2 {[%clk
0:02:59.8]} 11... Rb8 {[%clk 0:02:56.2]} 12. b3 {[%clk 0:02:52.6]} 12... h6
{[%clk 0:02:52.2]} 13. Bxf6 {[%clk 0:02:51.8]} 13... Bxf6 {[%clk 0:02:51.3]} 14.
Rad1 {[%clk 0:02:52.7]} 14... Bg5 {[%clk 0:02:43.5]} 15. Qe2 {[%clk 0:02:49.6]}
15... Qa5 {[%clk 0:02:40.2]} 16. Qc2 {[%clk 0:02:37.7]} 16... Be6 {[%clk
0:02:35.5]} 17. Ne2 {[%clk 0:02:33.5]} 17... Qb6 {[%clk 0:02:27]} 18. Kh1 {[%clk
0:02:32.1]} 18... a5 {[%clk 0:02:20.7]} 19. f4 {[%clk 0:02:30.4]} 19... exf4
{[%clk 0:02:17.6]} 20. Nxf4 {[%clk 0:02:31.3]} 20... Bg4 {[%clk 0:02:16.4]} 21.
Be2 {[%clk 0:02:27.8]} 21... Bxe2 {[%clk 0:02:09.9]} 22. Qxe2 {[%clk 0:02:28.7]}
22... Rbd8 {[%clk 0:02:01.7]} 23. Qg4 {[%clk 0:02:16.5]} 23... Rfe8 {[%clk
0:01:57.5]} 24. Nh3 {[%clk 0:02:12.2]} 24... Be7 {[%clk 0:01:44.6]} 25. Rd3
{[%clk 0:02:07.9]} 25... a4 {[%clk 0:01:40.5]} 26. Rdf3 {[%clk 0:02:04.4]} 26...
Rf8 {[%clk 0:01:36.4]} 27. Nf4 {[%clk 0:02:03.8]} 27... Bg5 {[%clk 0:01:26]} 28.
Nh5 {[%clk 0:01:58]} 28... g6 {[%clk 0:01:20.5]} 29. Nf6+ {[%clk 0:01:55.4]}
29... Bxf6 {[%clk 0:01:19.7]} 30. Rxf6 {[%clk 0:01:56.3]} 30... Kg7 {[%clk
0:01:14.8]} 31. Qf3 {[%clk 0:01:49.7]} 31... Rd7 {[%clk 0:01:09.7]} 32. Rxg6+
{[%clk 0:01:36]} 32... Kxg6 {[%clk 0:01:08.8]} 33. Qf5+ {[%clk 0:01:34]} 33...
Kg7 {[%clk 0:01:08.6]} 34. Qxd7 {[%clk 0:01:16.2]} 34... axb3 {[%clk 0:01:07.6]}
35. axb3 {[%clk 0:01:15.3]} 35... Qxb3 {[%clk 0:01:02.4]} 36. Qxd6 {[%clk
0:01:11.4]} 36... Qxc4 {[%clk 0:01:00.1]} 37. Qf6+ {[%clk 0:01:11.8]} 37... Kh7
{[%clk 0:00:59.5]} 38. Qf5+ {[%clk 0:01:11.8]} 38... Kg7 {[%clk 0:00:59.1]} 39.
h3 {[%clk 0:01:11.3]} 39... Qe6 {[%clk 0:00:54.3]} 40. Qf4 {[%clk 0:01:11.1]}
40... c5 {[%clk 0:00:42.3]} 41. Rf3 {[%clk 0:01:10.6]} 41... c4 {[%clk
0:00:39.1]} 42. e5 {[%clk 0:01:08.5]} 42... Rc8 {[%clk 0:00:25.9]} 43. Qg3+
{[%clk 0:01:08.1]} 43... Kf8 {[%clk 0:00:22.3]} 44. Rf6 {[%clk 0:01:06.4]} 44...
Qd5 {[%clk 0:00:20.1]} 45. Qf4 {[%clk 0:01:05.5]} 45... Qd1+ {[%clk 0:00:19.2]}
46. Kh2 {[%clk 0:01:05.7]} 46... c3 {[%clk 0:00:15.5]} 47. Rxf7+ {[%clk
0:01:05.7]} 47... Ke8 {[%clk 0:00:15.3]} 48. Rf8+ {[%clk 0:01:00.6]} 48... Kd7
{[%clk 0:00:15.2]} 49. Qf7+ {[%clk 0:01:00.9]} 49... Kc6 {[%clk 0:00:13.6]} 50.
Rxc8+ {[%clk 0:01:01.2]} 50... Kb5 {[%clk 0:00:13.1]} 51. Qb7+ {[%clk
0:01:00.9]} 1-0

[Event "*** SCC Grand Prix: Titled Tuesday Blitz"]
[Site "Chess.com"]
[Date "2020.09.29"]
[Round "2"]
[White "ajkom197"]
[Black "TrimitziosP7"]
[Result "0-1"]
[WhiteElo "2447"]
[BlackElo "2829"]
[TimeControl "180+1"]
[EndTime "10:16:55 PDT"]
[Termination "TrimitziosP7 won by resignation"]

1. c4 {[%clk 0:03:00.8]} 1... c6 {[%clk 0:02:57.7]} 2. e4 {[%clk 0:03:00.4]}
2... d5 {[%clk 0:02:57]} 3. exd5 {[%clk 0:03:00.5]} 3... cxd5 {[%clk 0:02:56.6]}
4. d4 {[%clk 0:02:59.6]} 4... Nf6 {[%clk 0:02:57.5]} 5. Nc3 {[%clk 0:02:59.4]}
5... Nc6 {[%clk 0:02:47.4]} 6. Nf3 {[%clk 0:02:59]} 6... Bg4 {[%clk 0:02:44.6]}
7. cxd5 {[%clk 0:02:53.1]} 7... Nxd5 {[%clk 0:02:45.5]} 8. Qb3 {[%clk
0:02:51.2]} 8... Bxf3 {[%clk 0:02:42.4]} 9. gxf3 {[%clk 0:02:50.5]} 9... e6
{[%clk 0:02:42.7]} 10. Qxb7 {[%clk 0:02:48.2]} 10... Nxd4 {[%clk 0:02:38.4]} 11.
Bb5+ {[%clk 0:02:47.7]} 11... Nxb5 {[%clk 0:02:35.3]} 12. Qc6+ {[%clk
0:02:47.6]} 12... Ke7 {[%clk 0:02:35.1]} 13. Qxb5 {[%clk 0:02:45.8]} 13... Rc8
{[%clk 0:02:30.6]} 14. O-O {[%clk 0:02:39.6]} 14... Qd7 {[%clk 0:02:14.8]} 15.
Nxd5+ {[%clk 0:02:31.7]} 15... Qxd5 {[%clk 0:02:13.4]} 16. Qxd5 {[%clk
0:02:24.8]} 16... exd5 {[%clk 0:02:14.3]} 17. Rd1 {[%clk 0:02:23.3]} 17... Ke6
{[%clk 0:02:11.7]} 18. Re1+ {[%clk 0:02:22.3]} 18... Kf5 {[%clk 0:02:07.4]} 19.
Rd1 {[%clk 0:02:22.2]} 19... Rd8 {[%clk 0:02:04.6]} 20. Be3 {[%clk 0:02:18.7]}
20... Rd7 {[%clk 0:02:04.6]} 21. Rd4 {[%clk 0:02:14.7]} 21... Bc5 {[%clk
0:02:04.2]} 22. Rf4+ {[%clk 0:02:10.5]} 22... Ke5 {[%clk 0:02:03.2]} 23. Re1
{[%clk 0:01:59.7]} 23... Bxe3 {[%clk 0:01:59]} 24. fxe3 {[%clk 0:02:00.6]} 24...
Rhd8 {[%clk 0:01:46.4]} 25. Kf2 {[%clk 0:01:57.8]} 25... f5 {[%clk 0:01:43.2]}
26. Rd1 {[%clk 0:01:52.4]} 26... d4 {[%clk 0:01:40.5]} 27. Rfxd4 {[%clk
0:01:47.2]} 27... Rxd4 {[%clk 0:01:41.4]} 28. exd4+ {[%clk 0:01:47.3]} 28...
Rxd4 {[%clk 0:01:42.3]} 29. Re1+ {[%clk 0:01:30.5]} 29... Kf4 {[%clk 0:01:39]}
30. Re7 {[%clk 0:01:24.1]} 30... g5 {[%clk 0:01:33.8]} 31. Rxh7 {[%clk
0:01:19.4]} 31... Rd2+ {[%clk 0:01:30.9]} 32. Ke1 {[%clk 0:01:19.5]} 32... Rxb2
{[%clk 0:01:26.6]} 33. h4 {[%clk 0:01:13.6]} 33... gxh4 {[%clk 0:01:09.8]} 34.
Rxh4+ {[%clk 0:01:13.1]} 34... Kxf3 {[%clk 0:01:04.8]} 35. Ra4 {[%clk
0:01:12.7]} 35... Rb7 {[%clk 0:00:59.4]} 36. Ra3+ {[%clk 0:00:41.1]} 36... Kg2
{[%clk 0:00:57.6]} 37. Ra4 {[%clk 0:00:28.7]} 37... Re7+ {[%clk 0:00:52]} 38.
Kd2 {[%clk 0:00:28.6]} 38... Kg3 {[%clk 0:00:50.7]} 39. Ra3+ {[%clk 0:00:25.5]}
39... Kg4 {[%clk 0:00:49.3]} 40. Re3 {[%clk 0:00:20.3]} 40... Rxe3 {[%clk
0:00:41.5]} 41. Kxe3 {[%clk 0:00:21.2]} 41... Kg3 {[%clk 0:00:42.4]} 42. Ke2
{[%clk 0:00:20.5]} 42... f4 {[%clk 0:00:41.7]} 43. Kf1 {[%clk 0:00:18.4]} 43...
Kf3 {[%clk 0:00:41.4]} 44. a3 {[%clk 0:00:13.8]} 44... a6 {[%clk 0:00:40.8]} 0-1

[Event "*** SCC Grand Prix: Titled Tuesday Blitz"]
[Site "Chess.com"]
[Date "2020.09.29"]
[Round "2"]
[White "Rodalquilar"]
[Black "Rital44"]
[Result "0-1"]
[WhiteElo "2777"]
[BlackElo "2365"]
[TimeControl "180+1"]
[EndTime "10:16:55 PDT"]
[Termination "Rital44 won by checkmate"]

1. d4 {[%clk 0:03:00.9]} 1... e5 {[%clk 0:02:59.5]} 2. dxe5 {[%clk 0:03:00.4]}
2... Nc6 {[%clk 0:03:00.1]} 3. Nf3 {[%clk 0:02:57.7]} 3... Qe7 {[%clk
0:03:00.3]} 4. e4 {[%clk 0:02:41.4]} 4... Nxe5 {[%clk 0:02:59.8]} 5. Nc3 {[%clk
0:02:41.3]} 5... Nf6 {[%clk 0:02:59.2]} 6. Bg5 {[%clk 0:02:35.1]} 6... c6 {[%clk
0:02:37.3]} 7. Be2 {[%clk 0:02:01.6]} 7... h6 {[%clk 0:02:36.8]} 8. Bf4 {[%clk
0:01:47.2]} 8... Ng6 {[%clk 0:02:36.4]} 9. Bg3 {[%clk 0:01:43.1]} 9... Qb4
{[%clk 0:02:36.3]} 10. O-O {[%clk 0:01:25.8]} 10... Qxb2 {[%clk 0:02:34.3]} 11.
Qd3 {[%clk 0:01:25.9]} 11... Bb4 {[%clk 0:02:29.8]} 12. Na4 {[%clk 0:01:19.7]}
12... Qa3 {[%clk 0:02:29.3]} 13. c3 {[%clk 0:01:01.9]} 13... Be7 {[%clk
0:02:18.6]} 14. Qc2 {[%clk 0:01:02.1]} 14... d5 {[%clk 0:02:12.3]} 15. exd5
{[%clk 0:00:59.6]} 15... Nxd5 {[%clk 0:02:13.2]} 16. Rfe1 {[%clk 0:00:50.4]}
16... O-O {[%clk 0:02:08.9]} 17. Bd3 {[%clk 0:00:47.7]} 17... Bf6 {[%clk
0:02:06.4]} 18. Nd4 {[%clk 0:00:28.5]} 18... Bd7 {[%clk 0:01:42.7]} 19. Nf5
{[%clk 0:00:10.7]} 19... Nxc3 {[%clk 0:01:30.9]} 20. Nb2 {[%clk 0:00:06]} 20...
Bxf5 {[%clk 0:01:18.6]} 21. Bxf5 {[%clk 0:00:05.5]} 21... Nd5 {[%clk 0:01:19.5]}
22. Nc4 {[%clk 0:00:05.8]} 22... Qa6 {[%clk 0:01:09.1]} 23. Rac1 {[%clk
0:00:05.7]} 23... Rfe8 {[%clk 0:01:08.5]} 24. Nd6 {[%clk 0:00:04.8]} 24... Rxe1+
{[%clk 0:01:02.8]} 25. Rxe1 {[%clk 0:00:05.7]} 25... Qa5 {[%clk 0:00:48.4]} 26.
Rd1 {[%clk 0:00:04.6]} 26... Qb4 {[%clk 0:00:38.8]} 27. Bxg6 {[%clk 0:00:03.6]}
27... fxg6 {[%clk 0:00:35.8]} 28. Qxg6 {[%clk 0:00:04.5]} 28... Nc3 {[%clk
0:00:29.7]} 29. Rf1 {[%clk 0:00:04.2]} 29... Rd8 {[%clk 0:00:23]} 30. Nf5 {[%clk
0:00:03.8]} 30... Qc4 {[%clk 0:00:19.3]} 31. Nxh6+ {[%clk 0:00:04]} 31... Kf8
{[%clk 0:00:19.6]} 32. Nf5 {[%clk 0:00:04.1]} 32... Qxf1+ {[%clk 0:00:19.1]} 33.
Kxf1 {[%clk 0:00:04.1]} 33... Rd1# {[%clk 0:00:20]} 0-1

[Event "*** SCC Grand Prix: Titled Tuesday Blitz"]
[Site "Chess.com"]
[Date "2020.09.29"]
[Round "2"]
[White "keepitcool9499"]
[Black "Oscar-Luna"]
[Result "0-1"]
[WhiteElo "2609"]
[BlackElo "2159"]
[TimeControl "180+1"]
[EndTime "10:16:57 PDT"]
[Termination "Oscar-Luna won by checkmate"]

1. d4 {[%clk 0:03:00.9]} 1... Nf6 {[%clk 0:02:59]} 2. c4 {[%clk 0:03:01.8]} 2...
e5 {[%clk 0:02:56.3]} 3. Nc3 {[%clk 0:03:02.7]} 3... exd4 {[%clk 0:02:56.3]} 4.
Qxd4 {[%clk 0:03:02.1]} 4... Nc6 {[%clk 0:02:56.6]} 5. Qd1 {[%clk 0:03:02.1]}
5... Bb4 {[%clk 0:02:52.8]} 6. Bd2 {[%clk 0:03:01.6]} 6... O-O {[%clk
0:02:41.8]} 7. Nf3 {[%clk 0:03:00.5]} 7... Re8 {[%clk 0:02:17.5]} 8. e3 {[%clk
0:02:59.2]} 8... d5 {[%clk 0:02:05.2]} 9. cxd5 {[%clk 0:02:56.9]} 9... Nxd5
{[%clk 0:02:05]} 10. Nxd5 {[%clk 0:02:57.2]} 10... Qxd5 {[%clk 0:02:05.2]} 11.
Bxb4 {[%clk 0:02:57.4]} 11... Qxd1+ {[%clk 0:02:05.1]} 12. Rxd1 {[%clk
0:02:55.8]} 12... Nxb4 {[%clk 0:02:02.2]} 13. a3 {[%clk 0:02:56]} 13... Nc6
{[%clk 0:01:58.1]} 14. Bb5 {[%clk 0:02:52.9]} 14... Bg4 {[%clk 0:01:56]} 15. Ke2
{[%clk 0:02:51.1]} 15... Rad8 {[%clk 0:01:42.1]} 16. Bxc6 {[%clk 0:02:50.2]}
16... bxc6 {[%clk 0:01:42.2]} 17. h3 {[%clk 0:02:49.3]} 17... Be6 {[%clk
0:01:22.1]} 18. Rc1 {[%clk 0:02:33.6]} 18... Rb8 {[%clk 0:01:15]} 19. b4 {[%clk
0:02:31.3]} 19... Bd5 {[%clk 0:01:13.5]} 20. Rhd1 {[%clk 0:02:22.6]} 20... a5
{[%clk 0:01:06.4]} 21. Rd4 {[%clk 0:02:21.2]} 21... axb4 {[%clk 0:01:05.7]} 22.
axb4 {[%clk 0:02:22.1]} 22... f6 {[%clk 0:00:56]} 23. Rc5 {[%clk 0:02:12.9]}
23... Re4 {[%clk 0:00:48]} 24. b5 {[%clk 0:01:46.2]} 24... Rxd4 {[%clk
0:00:14.9]} 25. Nxd4 {[%clk 0:01:47.1]} 25... Bxg2 {[%clk 0:00:14.6]} 26. Nxc6
{[%clk 0:01:45.2]} 26... Bxc6 {[%clk 0:00:11.1]} 27. bxc6 {[%clk 0:01:43.8]}
27... Rb6 {[%clk 0:00:10.6]} 28. Kf3 {[%clk 0:01:42.1]} 28... Kf7 {[%clk
0:00:10.6]} 29. Ke4 {[%clk 0:01:40.2]} 29... Ke6 {[%clk 0:00:10.8]} 30. Rh5
{[%clk 0:01:35.1]} 30... h6 {[%clk 0:00:10.2]} 31. Rc5 {[%clk 0:01:35.4]} 31...
Kd6 {[%clk 0:00:09.5]} 32. Rc2 {[%clk 0:01:32.9]} 32... Rxc6 {[%clk 0:00:09.5]}
33. Rd2+ {[%clk 0:01:27.9]} 33... Ke6 {[%clk 0:00:09.5]} 34. f4 {[%clk
0:01:28.2]} 34... Rc1 {[%clk 0:00:05.4]} 35. f5+ {[%clk 0:01:27.1]} 35... Ke7
{[%clk 0:00:05.8]} 36. Kf4 {[%clk 0:01:25.3]} 36... Rf1+ {[%clk 0:00:03.4]} 37.
Kg4 {[%clk 0:01:25.7]} 37... Rc1 {[%clk 0:00:03.8]} 38. e4 {[%clk 0:01:25.6]}
38... c5 {[%clk 0:00:04.4]} 39. Rd5 {[%clk 0:01:24]} 39... c4 {[%clk 0:00:03.9]}
40. Rc5 {[%clk 0:01:24.3]} 40... c3 {[%clk 0:00:03.9]} 41. Rc7+ {[%clk
0:01:24.8]} 41... Kd6 {[%clk 0:00:03.7]} 42. Rc8 {[%clk 0:01:20.9]} 42... c2
{[%clk 0:00:04.2]} 43. Kh5 {[%clk 0:01:21.2]} 43... Ke5 {[%clk 0:00:03.9]} 44.
Re8+ {[%clk 0:01:20]} 44... Kf4 {[%clk 0:00:04.4]} 45. Rc8 {[%clk 0:01:18.4]}
45... Kxe4 {[%clk 0:00:04.7]} 46. Kg6 {[%clk 0:01:17.7]} 46... Rg1+ {[%clk
0:00:03.7]} 47. Kf7 {[%clk 0:01:18.2]} 47... c1=Q {[%clk 0:00:04.3]} 48. Re8+
{[%clk 0:01:18.7]} 48... Kf4 {[%clk 0:00:04.1]} 49. Re6 {[%clk 0:01:19.1]} 49...
Qc4 {[%clk 0:00:03.8]} 50. Ke7 {[%clk 0:01:18.6]} 50... Kxf5 {[%clk 0:00:04]}
51. Rd6 {[%clk 0:01:18.5]} 51... Qc5 {[%clk 0:00:04]} 52. Kd7 {[%clk 0:01:18.1]}
52... Qxd6+ {[%clk 0:00:04.4]} 53. Kxd6 {[%clk 0:01:17.7]} 53... Rh1 {[%clk
0:00:05.3]} 54. h4 {[%clk 0:01:17.9]} 54... Rxh4 {[%clk 0:00:05.7]} 55. Ke7
{[%clk 0:01:18.8]} 55... Re4+ {[%clk 0:00:06.4]} 56. Kf7 {[%clk 0:01:19.7]}
56... Rf4 {[%clk 0:00:06.8]} 57. Kg8 {[%clk 0:01:20.6]} 57... h5 {[%clk
0:00:07.2]} 58. Kh7 {[%clk 0:01:21.2]} 58... h4 {[%clk 0:00:08.1]} 59. Kg8
{[%clk 0:01:22.1]} 59... g5 {[%clk 0:00:09]} 60. Kf7 {[%clk 0:01:23]} 60... g4
{[%clk 0:00:09.8]} 61. Kg8 {[%clk 0:01:23.9]} 61... g3 {[%clk 0:00:10.7]} 62.
Kf7 {[%clk 0:01:24.8]} 62... g2 {[%clk 0:00:11.5]} 63. Kf8 {[%clk 0:01:25.7]}
63... g1=Q {[%clk 0:00:12.4]} 64. Kf7 {[%clk 0:01:26.6]} 64... h3 {[%clk
0:00:12.7]} 65. Ke7 {[%clk 0:01:27.5]} 65... h2 {[%clk 0:00:12.9]} 66. Kf7
{[%clk 0:01:28.4]} 66... Qg6+ {[%clk 0:00:12]} 67. Kf8 {[%clk 0:01:29.3]} 67...
Qh7 {[%clk 0:00:10]} 68. Ke8 {[%clk 0:01:29.2]} 68... Rg4 {[%clk 0:00:08.9]} 69.
Kf8 {[%clk 0:01:30.1]} 69... Rg8# {[%clk 0:00:08.7]} 0-1

[Event "*** SCC Grand Prix: Titled Tuesday Blitz"]
[Site "Chess.com"]
[Date "2020.09.29"]
[Round "2"]
[White "JiiHart"]
[Black "ClydeHillKid"]
[Result "0-1"]
[WhiteElo "2060"]
[BlackElo "2378"]
[TimeControl "180+1"]
[EndTime "10:16:58 PDT"]
[Termination "ClydeHillKid won by checkmate"]

1. e4 {[%clk 0:03:00.9]} 1... e6 {[%clk 0:03:00.1]} 2. d4 {[%clk 0:03:00.4]}
2... d5 {[%clk 0:03:00.7]} 3. Nc3 {[%clk 0:03:00.9]} 3... Nf6 {[%clk 0:03:00.1]}
4. Bg5 {[%clk 0:02:59.5]} 4... Be7 {[%clk 0:03:00.3]} 5. e5 {[%clk 0:02:59.4]}
5... Nfd7 {[%clk 0:03:00.6]} 6. h4 {[%clk 0:03:00.1]} 6... Bxg5 {[%clk
0:03:00.5]} 7. hxg5 {[%clk 0:03:00.3]} 7... Qxg5 {[%clk 0:03:01.4]} 8. Nh3
{[%clk 0:03:00.6]} 8... Qe7 {[%clk 0:03:01.3]} 9. Qg4 {[%clk 0:02:58.3]} 9... g6
{[%clk 0:03:01.3]} 10. O-O-O {[%clk 0:02:56.7]} 10... Nc6 {[%clk 0:02:59.6]} 11.
Ng5 {[%clk 0:02:41.4]} 11... h5 {[%clk 0:02:55.5]} 12. Qf4 {[%clk 0:02:40.8]}
12... Nb6 {[%clk 0:02:55.2]} 13. Rh3 {[%clk 0:02:30.5]} 13... Bd7 {[%clk
0:02:55]} 14. Rf3 {[%clk 0:02:29.2]} 14... O-O-O {[%clk 0:02:29]} 15. Nb5 {[%clk
0:01:57]} 15... a6 {[%clk 0:02:19.6]} 16. Nc3 {[%clk 0:01:52.2]} 16... Rdf8
{[%clk 0:02:02.8]} 17. Be2 {[%clk 0:01:50.7]} 17... Be8 {[%clk 0:01:55.7]} 18.
Kb1 {[%clk 0:01:49.3]} 18... Nd7 {[%clk 0:01:55.4]} 19. Na4 {[%clk 0:01:40.8]}
19... f6 {[%clk 0:01:51.3]} 20. exf6 {[%clk 0:01:35.5]} 20... Rxf6 {[%clk
0:01:50.5]} 21. Qd2 {[%clk 0:01:32.6]} 21... Rxf3 {[%clk 0:01:41.3]} 22. Nxf3
{[%clk 0:01:32.5]} 22... Nf6 {[%clk 0:01:39.7]} 23. Bd3 {[%clk 0:01:25.4]} 23...
Nxd4 {[%clk 0:01:21.7]} 24. Nxd4 {[%clk 0:01:24.4]} 24... Bxa4 {[%clk 0:01:21]}
25. Bxg6 {[%clk 0:01:23]} 25... Bd7 {[%clk 0:01:10.9]} 26. f4 {[%clk 0:01:19.9]}
26... Rg8 {[%clk 0:01:05.1]} 27. Bd3 {[%clk 0:01:17.6]} 27... c5 {[%clk
0:00:56.6]} 28. Nf3 {[%clk 0:01:16.3]} 28... c4 {[%clk 0:00:56.7]} 29. Bf1
{[%clk 0:01:11.3]} 29... Ne4 {[%clk 0:00:56.2]} 30. Qd4 {[%clk 0:01:07.7]} 30...
c3 {[%clk 0:00:54.5]} 31. Ne5 {[%clk 0:00:59.2]} 31... Bb5 {[%clk 0:00:43.1]}
32. Bd3 {[%clk 0:00:51.7]} 32... Bxd3 {[%clk 0:00:34.8]} 33. cxd3 {[%clk
0:00:51]} 33... Rxg2 {[%clk 0:00:23.6]} 34. Rc1 {[%clk 0:00:26.4]} 34... Rxb2+
{[%clk 0:00:21.9]} 35. Ka1 {[%clk 0:00:26.6]} 35... Qa3 {[%clk 0:00:19.8]} 36.
Rxc3+ {[%clk 0:00:16.7]} 36... Nxc3 {[%clk 0:00:17.9]} 37. Qc5+ {[%clk
0:00:14.5]} 37... Qxc5 {[%clk 0:00:16.9]} 38. Nd7 {[%clk 0:00:13.8]} 38... Rxa2#
{[%clk 0:00:15.7]} 0-1

[Event "*** SCC Grand Prix: Titled Tuesday Blitz"]
[Site "Chess.com"]
[Date "2020.09.29"]
[Round "2"]
[White "BocharovD"]
[Black "zajka-molotok"]
[Result "1-0"]
[WhiteElo "2773"]
[BlackElo "2497"]
[TimeControl "180+1"]
[EndTime "10:16:59 PDT"]
[Termination "BocharovD won on time"]

1. c4 {[%clk 0:02:17.1]} 1... Nf6 {[%clk 0:02:53.8]} 2. g3 {[%clk 0:02:14]} 2...
c6 {[%clk 0:02:51.8]} 3. Nf3 {[%clk 0:02:13.4]} 3... d5 {[%clk 0:02:51.8]} 4.
Bg2 {[%clk 0:02:14]} 4... Bf5 {[%clk 0:02:51.2]} 5. cxd5 {[%clk 0:02:12.6]} 5...
cxd5 {[%clk 0:02:50.9]} 6. Qb3 {[%clk 0:02:12.5]} 6... Nc6 {[%clk 0:02:48.5]} 7.
Qxb7 {[%clk 0:02:08.1]} 7... Bd7 {[%clk 0:02:47.8]} 8. Qb3 {[%clk 0:02:08]} 8...
e5 {[%clk 0:02:47]} 9. O-O {[%clk 0:02:07.9]} 9... e4 {[%clk 0:02:40.9]} 10. Ne1
{[%clk 0:02:07.8]} 10... Bc5 {[%clk 0:02:09.1]} 11. Nc3 {[%clk 0:02:05]} 11...
Nd4 {[%clk 0:02:03.2]} 12. Qd1 {[%clk 0:02:04.4]} 12... h5 {[%clk 0:02:01.7]}
13. d3 {[%clk 0:01:52.2]} 13... Bf5 {[%clk 0:01:35.3]} 14. Bg5 {[%clk
0:01:48.4]} 14... h4 {[%clk 0:01:23.8]} 15. dxe4 {[%clk 0:01:43.2]} 15... dxe4
{[%clk 0:01:22]} 16. Nxe4 {[%clk 0:01:41.4]} 16... hxg3 {[%clk 0:00:59.8]} 17.
Nxc5 {[%clk 0:01:30.5]} 17... Rc8 {[%clk 0:00:46.5]} 18. Ncd3 {[%clk 0:01:12.4]}
18... gxh2+ {[%clk 0:00:29.1]} 19. Kh1 {[%clk 0:01:11.6]} 19... Bh3 {[%clk
0:00:26.1]} 20. Be3 {[%clk 0:00:55.3]} 20... Nf5 {[%clk 0:00:20.2]} 21. Nf4
{[%clk 0:00:50]} 21... Bxg2+ {[%clk 0:00:17.2]} 22. Nexg2 {[%clk 0:00:50.9]}
22... Qe7 {[%clk 0:00:14.7]} 23. Nd5 {[%clk 0:00:48.3]} 23... Nxd5 {[%clk
0:00:13]} 24. Qxd5 {[%clk 0:00:49.2]} 24... g6 {[%clk 0:00:12.8]} 25. Rad1
{[%clk 0:00:46.6]} 25... Kf8 {[%clk 0:00:12.4]} 26. Bd4 {[%clk 0:00:39]} 26...
Rh5 {[%clk 0:00:11.6]} 27. Qe5 {[%clk 0:00:34.1]} 27... Qg5 {[%clk 0:00:06.2]}
28. Qf4 {[%clk 0:00:32]} 28... Qe7 {[%clk 0:00:05]} 29. Bc3 {[%clk 0:00:21]}
29... Kg8 {[%clk 0:00:05]} 30. e4 {[%clk 0:00:18.3]} 30... Nh4 {[%clk
0:00:03.8]} 31. Qf6 {[%clk 0:00:18.6]} 31... Qxf6 {[%clk 0:00:01.8]} 32. Bxf6
{[%clk 0:00:18.8]} 1-0